[Event "*** Titled Tuesday Blitz"]
[Site "Chess.com"]
[Date "2020.12.29"]
[Round "10"]
[White "PhoenixFire8"]
[Black "The_filthy"]
[Result "0-1"]
[WhiteElo "2422"]
[BlackElo "2312"]
[TimeControl "180+1"]
[EndTime "11:53:18 PST"]
[Termination "The_filthy won by resignation"]

1. Nf3 {[%clk 0:03:00.9]} 1... d5 {[%clk 0:02:59.6]} 2. b3 {[%clk 0:03:01.2]}
2... c6 {[%clk 0:02:59.4]} 3. Bb2 {[%clk 0:03:01.8]} 3... Nd7 {[%clk 0:02:59.4]}
4. e3 {[%clk 0:03:01.4]} 4... f6 {[%clk 0:02:59.6]} 5. d4 {[%clk 0:03:00.9]}
5... e6 {[%clk 0:02:59.8]} 6. c4 {[%clk 0:03:00.2]} 6... Bd6 {[%clk 0:02:59.3]}
7. Bd3 {[%clk 0:02:58.5]} 7... Ne7 {[%clk 0:02:58.7]} 8. Qc2 {[%clk 0:02:58.9]}
8... e5 {[%clk 0:02:54.6]} 9. dxe5 {[%clk 0:02:49.3]} 9... fxe5 {[%clk
0:02:54.6]} 10. Bxh7 {[%clk 0:02:33.8]} 10... e4 {[%clk 0:02:54.2]} 11. Ng5
{[%clk 0:02:34.4]} 11... Ne5 {[%clk 0:02:49]} 12. Bxe4 {[%clk 0:01:51.5]} 12...
dxe4 {[%clk 0:02:47.2]} 13. Qxe4 {[%clk 0:01:52.4]} 13... Bf5 {[%clk 0:02:34.1]}
14. Qd4 {[%clk 0:01:48.7]} 14... c5 {[%clk 0:02:02.7]} 15. Qd2 {[%clk
0:01:41.9]} 15... N7c6 {[%clk 0:01:54.4]} 16. Nf3 {[%clk 0:01:34]} 16... Nd3+
{[%clk 0:01:53]} 17. Ke2 {[%clk 0:01:34]} 17... Nxb2 {[%clk 0:01:53.1]} 18. Qxb2
{[%clk 0:01:34.2]} 18... Qe7 {[%clk 0:01:49.8]} 19. Nc3 {[%clk 0:01:33]} 19...
Nb4 {[%clk 0:01:49.3]} 20. Nd5 {[%clk 0:01:28.9]} 20... Nxd5 {[%clk 0:01:48.8]}
21. cxd5 {[%clk 0:01:29.8]} 21... O-O-O {[%clk 0:01:47.1]} 22. b4 {[%clk
0:01:17.3]} 22... cxb4 {[%clk 0:01:46.3]} 23. h3 {[%clk 0:00:54.5]} 23... Kb8
{[%clk 0:01:44.9]} 24. Rhd1 {[%clk 0:00:54.3]} 24... Rc8 {[%clk 0:01:40.4]} 25.
Rac1 {[%clk 0:00:53.9]} 25... Rxc1 {[%clk 0:01:26.2]} 26. Rxc1 {[%clk 0:00:54]}
26... Rc8 {[%clk 0:01:26.4]} 27. Nd4 {[%clk 0:00:54.3]} 27... Rxc1 {[%clk
0:01:16.1]} 28. Nxf5 {[%clk 0:00:50.5]} 28... Qc7 {[%clk 0:01:14.2]} 29. Qxg7
{[%clk 0:00:41.2]} 29... Qc2+ {[%clk 0:01:10.3]} 30. Kf3 {[%clk 0:00:40.4]}
30... Qxf5+ {[%clk 0:01:10.4]} 0-1

[Event "*** Titled Tuesday Blitz"]
[Site "Chess.com"]
[Date "2020.12.29"]
[Round "10"]
[White "KyronGriffith"]
[Black "Everyfishknows"]
[Result "0-1"]
[WhiteElo "2522"]
[BlackElo "2415"]
[TimeControl "180+1"]
[EndTime "11:53:21 PST"]
[Termination "Everyfishknows won by resignation"]

1. e4 {[%clk 0:03:00.9]} 1... e5 {[%clk 0:02:59.4]} 2. Nf3 {[%clk 0:02:59.7]}
2... Nc6 {[%clk 0:02:58.7]} 3. Nc3 {[%clk 0:03:00.3]} 3... Nf6 {[%clk
0:02:58.3]} 4. g3 {[%clk 0:03:01]} 4... d5 {[%clk 0:02:51]} 5. exd5 {[%clk
0:03:01.9]} 5... Nxd5 {[%clk 0:02:51]} 6. Bg2 {[%clk 0:03:00.9]} 6... Nxc3
{[%clk 0:02:50.4]} 7. bxc3 {[%clk 0:03:01.8]} 7... Bd6 {[%clk 0:02:50.1]} 8. O-O
{[%clk 0:03:02.2]} 8... O-O {[%clk 0:02:50.1]} 9. d4 {[%clk 0:02:56.4]} 9... Bg4
{[%clk 0:02:46.8]} 10. h3 {[%clk 0:02:52.3]} 10... Bh5 {[%clk 0:02:44.9]} 11.
Be3 {[%clk 0:02:46.1]} 11... e4 {[%clk 0:02:39.9]} 12. Rb1 {[%clk 0:02:25.4]}
12... exf3 {[%clk 0:02:38.7]} 13. Bxf3 {[%clk 0:02:26.3]} 13... Bxf3 {[%clk
0:02:38.9]} 14. Qxf3 {[%clk 0:02:27.2]} 14... Rb8 {[%clk 0:02:37.3]} 15. c4
{[%clk 0:02:25.3]} 15... Qd7 {[%clk 0:02:29]} 16. c5 {[%clk 0:02:22.1]} 16...
Be7 {[%clk 0:02:29.1]} 17. c3 {[%clk 0:02:22.5]} 17... Qxh3 {[%clk 0:02:26.9]}
18. Bf4 {[%clk 0:02:16]} 18... Qf5 {[%clk 0:02:21.4]} 19. Qe2 {[%clk 0:02:04]}
19... Rfe8 {[%clk 0:02:15.5]} 20. Qc4 {[%clk 0:01:56.3]} 20... h5 {[%clk
0:01:50.6]} 21. Bxc7 {[%clk 0:01:54.4]} 21... Rbc8 {[%clk 0:01:50.8]} 22. Rxb7
{[%clk 0:01:52.6]} 22... h4 {[%clk 0:01:49.4]} 23. Qb5 {[%clk 0:01:15.6]} 23...
Qf3 {[%clk 0:01:42.5]} 24. Rb1 {[%clk 0:01:02.6]} 24... Bf6 {[%clk 0:01:13.4]}
25. Bf4 {[%clk 0:00:52.3]} 25... Re2 {[%clk 0:01:09.4]} 0-1

[Event "*** Titled Tuesday Blitz"]
[Site "Chess.com"]
[Date "2020.12.29"]
[Round "10"]
[White "Grammnik"]
[Black "SergeyShtyka"]
[Result "0-1"]
[WhiteElo "2332"]
[BlackElo "2461"]
[TimeControl "180+1"]
[EndTime "11:53:23 PST"]
[Termination "SergeyShtyka won by resignation"]

1. d4 {[%clk 0:03:00.9]} 1... c5 {[%clk 0:02:59.8]} 2. d5 {[%clk 0:03:00.6]}
2... e5 {[%clk 0:02:59.5]} 3. e4 {[%clk 0:03:00.8]} 3... d6 {[%clk 0:02:59.4]}
4. Bb5+ {[%clk 0:03:00.4]} 4... Bd7 {[%clk 0:02:59.2]} 5. a4 {[%clk 0:03:00.2]}
5... Be7 {[%clk 0:02:58.8]} 6. Nc3 {[%clk 0:02:59.5]} 6... Bg5 {[%clk
0:02:57.9]} 7. Nf3 {[%clk 0:02:54.7]} 7... Bxc1 {[%clk 0:02:57.4]} 8. Qxc1
{[%clk 0:02:55.3]} 8... Nf6 {[%clk 0:02:56.6]} 9. Qg5 {[%clk 0:02:52.2]} 9...
O-O {[%clk 0:02:55]} 10. Bxd7 {[%clk 0:02:47]} 10... Nbxd7 {[%clk 0:02:53.3]}
11. O-O {[%clk 0:02:46.4]} 11... Qe7 {[%clk 0:02:48]} 12. Nh4 {[%clk 0:02:45.3]}
12... Nxd5 {[%clk 0:02:38.7]} 13. Qxe7 {[%clk 0:02:40.5]} 13... Nxe7 {[%clk
0:02:39.6]} 14. Rfd1 {[%clk 0:02:40.2]} 14... Nb6 {[%clk 0:01:44.6]} 15. Rxd6
{[%clk 0:02:36.1]} 15... Nc6 {[%clk 0:01:44.6]} 16. b3 {[%clk 0:02:31]} 16...
Rfd8 {[%clk 0:01:41.5]} 17. Rxd8+ {[%clk 0:02:06.4]} 17... Rxd8 {[%clk
0:01:40.9]} 18. a5 {[%clk 0:02:07.3]} 18... Nc8 {[%clk 0:01:25.4]} 19. Nf3
{[%clk 0:02:05.8]} 19... f6 {[%clk 0:01:21.4]} 20. Nd5 {[%clk 0:01:48.5]} 20...
Kf7 {[%clk 0:01:17.9]} 21. Kf1 {[%clk 0:01:46.1]} 21... Nd4 {[%clk 0:01:15.8]}
22. Nxd4 {[%clk 0:01:45.3]} 22... cxd4 {[%clk 0:01:15.6]} 23. Ke2 {[%clk
0:01:37.6]} 23... f5 {[%clk 0:01:10.1]} 24. f3 {[%clk 0:01:37.4]} 24... Nd6
{[%clk 0:01:06.2]} 25. Kd3 {[%clk 0:01:26.1]} 25... Ke6 {[%clk 0:00:59.9]} 26.
a6 {[%clk 0:01:09]} 26... b6 {[%clk 0:00:50]} 27. Nxb6 {[%clk 0:01:06]} 27...
fxe4+ {[%clk 0:00:45]} 28. fxe4 {[%clk 0:01:05.6]} 28... axb6 {[%clk 0:00:45.5]}
29. a7 {[%clk 0:01:04.6]} 29... Ra8 {[%clk 0:00:45.5]} 0-1

[Event "*** Titled Tuesday Blitz"]
[Site "Chess.com"]
[Date "2020.12.29"]
[Round "10"]
[White "ferdipy"]
[Black "azikom"]
[Result "0-1"]
[WhiteElo "2210"]
[BlackElo "2598"]
[TimeControl "180+1"]
[EndTime "11:53:24 PST"]
[Termination "azikom won by resignation"]

1. d4 {[%clk 0:02:59.5]} 1... d5 {[%clk 0:02:59.3]} 2. Nf3 {[%clk 0:02:59.8]}
2... Bf5 {[%clk 0:02:58.6]} 3. Bg5 {[%clk 0:03:00]} 3... h6 {[%clk 0:02:57.5]}
4. Bf4 {[%clk 0:02:59.9]} 4... c6 {[%clk 0:02:56.1]} 5. Nbd2 {[%clk 0:03:00.2]}
5... e6 {[%clk 0:02:55.8]} 6. e3 {[%clk 0:03:00.5]} 6... Nd7 {[%clk 0:02:56.2]}
7. Bd3 {[%clk 0:03:00.1]} 7... Ngf6 {[%clk 0:02:55.7]} 8. O-O {[%clk 0:03:00.2]}
8... Ne4 {[%clk 0:02:54.4]} 9. Qe2 {[%clk 0:02:59]} 9... Be7 {[%clk 0:02:53.7]}
10. h3 {[%clk 0:02:58.9]} 10... O-O {[%clk 0:02:53.6]} 11. a3 {[%clk 0:02:58.8]}
11... Qb6 {[%clk 0:02:53.5]} 12. Rab1 {[%clk 0:02:57]} 12... a5 {[%clk
0:02:52.4]} 13. c4 {[%clk 0:02:54.2]} 13... a4 {[%clk 0:02:49]} 14. Rfc1 {[%clk
0:02:38.8]} 14... Qa7 {[%clk 0:02:46.7]} 15. Ne5 {[%clk 0:02:30.5]} 15... Nxe5
{[%clk 0:02:45.4]} 16. Bxe5 {[%clk 0:02:31.4]} 16... Nxd2 {[%clk 0:02:41.8]} 17.
Qxd2 {[%clk 0:02:31.4]} 17... Bxd3 {[%clk 0:02:41.5]} 18. Qxd3 {[%clk
0:02:32.3]} 18... Qa6 {[%clk 0:02:41.4]} 19. Qf1 {[%clk 0:02:24.9]} 19... Rfc8
{[%clk 0:02:36.9]} 20. Rc2 {[%clk 0:02:25]} 20... Bf8 {[%clk 0:02:36.2]} 21.
Rbc1 {[%clk 0:02:25.1]} 21... Rd8 {[%clk 0:02:35.7]} 22. Qd1 {[%clk 0:02:24.7]}
22... Rd7 {[%clk 0:02:34.5]} 23. Qg4 {[%clk 0:02:23.9]} 23... Qa5 {[%clk
0:02:33.4]} 24. cxd5 {[%clk 0:02:19.9]} 24... Rxd5 {[%clk 0:02:32.5]} 25. Qf3
{[%clk 0:01:56.8]} 25... Qd8 {[%clk 0:02:30.5]} 26. Re2 {[%clk 0:01:54.2]} 26...
Rb5 {[%clk 0:02:28.7]} 27. Qg3 {[%clk 0:01:51.7]} 27... Qg5 {[%clk 0:02:25.6]}
28. Qf3 {[%clk 0:01:50.1]} 28... Qf5 {[%clk 0:02:22.6]} 29. Qg3 {[%clk
0:01:49.8]} 29... Rb3 {[%clk 0:02:17]} 30. Bd6 {[%clk 0:01:38.2]} 30... Qg5
{[%clk 0:02:12.2]} 31. Qxg5 {[%clk 0:01:28.5]} 31... hxg5 {[%clk 0:02:11.8]} 32.
Bxf8 {[%clk 0:01:27.1]} 32... Kxf8 {[%clk 0:02:11.9]} 33. Rc5 {[%clk 0:01:27.4]}
33... f6 {[%clk 0:02:11.7]} 34. Rec2 {[%clk 0:01:26.2]} 34... Ke7 {[%clk
0:02:07.2]} 35. Kf1 {[%clk 0:01:25]} 35... Ra6 {[%clk 0:02:05.3]} 36. Ke2 {[%clk
0:01:24.9]} 36... Rab6 {[%clk 0:02:04.4]} 37. R5c4 {[%clk 0:01:17.9]} 37... Rxb2
{[%clk 0:02:04.1]} 38. Kd2 {[%clk 0:01:18.4]} 38... Rxc2+ {[%clk 0:02:01.5]} 39.
Kxc2 {[%clk 0:01:18.4]} 39... Ra6 {[%clk 0:02:01.9]} 40. Kc3 {[%clk 0:01:16.1]}
40... Kd6 {[%clk 0:02:01.5]} 41. Kb4 {[%clk 0:01:15]} 41... b5 {[%clk
0:01:50.2]} 42. Rc5 {[%clk 0:01:14.3]} 42... Ra8 {[%clk 0:01:50.1]} 43. e4
{[%clk 0:01:14.1]} 43... Rh8 {[%clk 0:01:40.9]} 44. d5 {[%clk 0:01:07.5]} 44...
exd5 {[%clk 0:01:36.6]} 45. exd5 {[%clk 0:01:01.4]} 45... Rh4+ {[%clk
0:01:36.7]} 0-1

[Event "*** Titled Tuesday Blitz"]
[Site "Chess.com"]
[Date "2020.12.29"]
[Round "10"]
[White "Tekushka"]
[Black "HeadShotRomanTest"]
[Result "1-0"]
[WhiteElo "2395"]
[BlackElo "2174"]
[TimeControl "180+1"]
[EndTime "11:53:26 PST"]
[Termination "Tekushka won by resignation"]

1. e4 {[%clk 0:03:00.9]} 1... c5 {[%clk 0:02:59.8]} 2. Nf3 {[%clk 0:03:00.8]}
2... d6 {[%clk 0:02:59.7]} 3. d4 {[%clk 0:03:01]} 3... cxd4 {[%clk 0:03:00.6]}
4. Nxd4 {[%clk 0:03:01.1]} 4... Nf6 {[%clk 0:03:01.2]} 5. Nc3 {[%clk 0:03:01.5]}
5... g6 {[%clk 0:03:01.8]} 6. Be3 {[%clk 0:03:00.6]} 6... Bg7 {[%clk 0:03:02.2]}
7. f3 {[%clk 0:03:01.1]} 7... O-O {[%clk 0:03:02.7]} 8. Qd2 {[%clk 0:03:01.7]}
8... Nc6 {[%clk 0:03:03.2]} 9. O-O-O {[%clk 0:03:01.9]} 9... Bd7 {[%clk
0:03:03]} 10. g4 {[%clk 0:02:58.6]} 10... Ne5 {[%clk 0:02:58]} 11. h4 {[%clk
0:02:57.9]} 11... Rc8 {[%clk 0:02:58.1]} 12. Kb1 {[%clk 0:02:53.3]} 12... Qa5
{[%clk 0:02:57.1]} 13. h5 {[%clk 0:02:47.6]} 13... Rxc3 {[%clk 0:02:55.7]} 14.
Qxc3 {[%clk 0:02:46.4]} 14... Qxc3 {[%clk 0:02:55]} 15. bxc3 {[%clk 0:02:46.8]}
15... Nxf3 {[%clk 0:02:54.5]} 16. Nxf3 {[%clk 0:02:43.9]} 16... Bxg4 {[%clk
0:02:54.8]} 17. Bg2 {[%clk 0:02:37.4]} 17... Nxe4 {[%clk 0:02:54.4]} 18. Bd4
{[%clk 0:02:30.8]} 18... e5 {[%clk 0:02:42.3]} 19. Rhe1 {[%clk 0:02:10.5]} 19...
Bxf3 {[%clk 0:02:36.7]} 20. Bxf3 {[%clk 0:02:10]} 20... Ng5 {[%clk 0:02:34.5]}
21. Bd5 {[%clk 0:02:03.7]} 21... exd4 {[%clk 0:02:31.8]} 22. cxd4 {[%clk
0:02:01.5]} 22... gxh5 {[%clk 0:02:24.6]} 23. Re7 {[%clk 0:01:37.3]} 23... a5
{[%clk 0:02:07.5]} 24. Rxb7 {[%clk 0:01:36.6]} 24... h4 {[%clk 0:02:06.3]} 25.
c3 {[%clk 0:01:33.7]} 25... Re8 {[%clk 0:02:02.5]} 26. Rf1 {[%clk 0:01:27.8]}
26... Rf8 {[%clk 0:01:54.5]} 27. Ra7 {[%clk 0:01:22.4]} 27... h6 {[%clk
0:01:49.7]} 28. Rxa5 {[%clk 0:01:22]} 28... Kh8 {[%clk 0:01:41.5]} 29. Ra7
{[%clk 0:01:18.9]} 29... f5 {[%clk 0:01:40.2]} 30. a4 {[%clk 0:01:18.3]} 30...
f4 {[%clk 0:01:39]} 31. a5 {[%clk 0:01:15.2]} 31... f3 {[%clk 0:01:39.1]} 32. a6
{[%clk 0:01:14.7]} 32... h3 {[%clk 0:01:26.5]} 33. Re7 {[%clk 0:01:10.7]} 33...
Bf6 {[%clk 0:00:55.9]} 34. Re3 {[%clk 0:01:09.1]} 34... Rf7 {[%clk 0:00:46.6]}
35. Bxf7 {[%clk 0:01:06.7]} 1-0

[Event "*** Titled Tuesday Blitz"]
[Site "Chess.com"]
[Date "2020.12.29"]
[Round "10"]
[White "Pelopidass"]
[Black "Chamal_Gedgafov"]
[Result "1/2-1/2"]
[WhiteElo "2557"]
[BlackElo "2266"]
[TimeControl "180+1"]
[EndTime "11:53:29 PST"]
[Termination "Game drawn by agreement"]

1. e4 {[%clk 0:03:00.9]} 1... e5 {[%clk 0:02:57.9]} 2. Nf3 {[%clk 0:03:01]} 2...
Nc6 {[%clk 0:02:57.6]} 3. Bb5 {[%clk 0:03:01.4]} 3... a6 {[%clk 0:02:56.8]} 4.
Ba4 {[%clk 0:03:01.2]} 4... Nf6 {[%clk 0:02:56.5]} 5. O-O {[%clk 0:03:00.8]}
5... Be7 {[%clk 0:02:56]} 6. Bxc6 {[%clk 0:03:00.3]} 6... dxc6 {[%clk
0:02:53.8]} 7. d3 {[%clk 0:03:00.6]} 7... Nd7 {[%clk 0:02:51.1]} 8. Nbd2 {[%clk
0:03:00.8]} 8... c5 {[%clk 0:02:50.6]} 9. Nc4 {[%clk 0:02:56.4]} 9... f6 {[%clk
0:02:50.2]} 10. Nh4 {[%clk 0:02:55.2]} 10... O-O {[%clk 0:02:49]} 11. Nf5 {[%clk
0:02:53.9]} 11... Rf7 {[%clk 0:02:38.2]} 12. Qg4 {[%clk 0:02:50.3]} 12... Kh8
{[%clk 0:02:35.4]} 13. f4 {[%clk 0:02:44.2]} 13... Bf8 {[%clk 0:02:16.6]} 14.
fxe5 {[%clk 0:02:39.8]} 14... Nxe5 {[%clk 0:02:15.8]} 15. Nxe5 {[%clk
0:02:39.7]} 15... fxe5 {[%clk 0:02:16.7]} 16. Bg5 {[%clk 0:02:38.4]} 16... Qe8
{[%clk 0:02:12.7]} 17. Qg3 {[%clk 0:02:24.9]} 17... Bd7 {[%clk 0:02:09.5]} 18.
Bd2 {[%clk 0:02:18.2]} 18... Bd6 {[%clk 0:01:53.8]} 19. Bc3 {[%clk 0:02:02.1]}
19... Qe6 {[%clk 0:01:49]} 20. Nxd6 {[%clk 0:01:56.7]} 20... cxd6 {[%clk
0:01:48.1]} 21. Rxf7 {[%clk 0:01:40.6]} 21... Qxf7 {[%clk 0:01:47.4]} 22. Qf2
{[%clk 0:01:41.2]} 22... Rf8 {[%clk 0:01:43.8]} 23. Qxf7 {[%clk 0:01:40.4]}
23... Rxf7 {[%clk 0:01:44.1]} 24. Ba5 {[%clk 0:01:33.8]} 24... Be6 {[%clk
0:01:38.2]} 25. c4 {[%clk 0:01:33.2]} 25... Kg8 {[%clk 0:01:36.7]} 26. b4 {[%clk
0:01:30.4]} 26... b5 {[%clk 0:01:27.4]} 27. cxb5 {[%clk 0:01:16.4]} 27... axb5
{[%clk 0:01:26]} 28. a4 {[%clk 0:01:14.8]} 28... bxa4 {[%clk 0:01:21.6]} 29.
bxc5 {[%clk 0:01:11.7]} 29... dxc5 {[%clk 0:01:14.3]} 30. Rxa4 {[%clk
0:01:10.7]} 30... Ra7 {[%clk 0:01:13.3]} 31. Ra1 {[%clk 0:01:09.3]} 31... c4
{[%clk 0:01:11.1]} 32. dxc4 {[%clk 0:01:01.9]} 32... Bxc4 {[%clk 0:01:10.1]} 33.
Bc3 {[%clk 0:00:51.3]} 33... Rxa1+ {[%clk 0:01:08.2]} 34. Bxa1 {[%clk
0:00:52.2]} 34... Bd3 {[%clk 0:01:08]} 35. Bxe5 {[%clk 0:00:52.8]} 35... Bxe4
{[%clk 0:01:07.8]} 36. Kf2 {[%clk 0:00:53.7]} 1/2-1/2

[Event "*** Titled Tuesday Blitz"]
[Site "Chess.com"]
[Date "2020.12.29"]
[Round "10"]
[White "Carnivoras"]
[Black "annamaja"]
[Result "0-1"]
[WhiteElo "2545"]
[BlackElo "2297"]
[TimeControl "180+1"]
[EndTime "11:53:29 PST"]
[Termination "annamaja won by resignation"]

1. e4 {[%clk 0:03:00.9]} 1... e6 {[%clk 0:03:00.1]} 2. h4 {[%clk 0:02:57.8]}
2... d5 {[%clk 0:02:58.3]} 3. e5 {[%clk 0:02:57.4]} 3... c5 {[%clk 0:02:58.1]}
4. h5 {[%clk 0:02:57.6]} 4... h6 {[%clk 0:02:56.1]} 5. Qe2 {[%clk 0:02:54.1]}
5... Nc6 {[%clk 0:02:55.5]} 6. d3 {[%clk 0:02:54]} 6... Qc7 {[%clk 0:02:37.8]}
7. f4 {[%clk 0:02:50.7]} 7... Nd4 {[%clk 0:02:35.9]} 8. Qd1 {[%clk 0:02:45.3]}
8... Bd7 {[%clk 0:02:14.7]} 9. c3 {[%clk 0:02:34.8]} 9... Nf5 {[%clk 0:02:13.3]}
10. Ne2 {[%clk 0:02:32.1]} 10... d4 {[%clk 0:02:05.3]} 11. g4 {[%clk 0:02:27.5]}
11... Ne3 {[%clk 0:01:55.9]} 12. Bxe3 {[%clk 0:02:25.4]} 12... dxe3 {[%clk
0:01:56.8]} 13. Bg2 {[%clk 0:02:25.1]} 13... Bc6 {[%clk 0:01:54.1]} 14. O-O
{[%clk 0:02:23.1]} 14... Bxg2 {[%clk 0:01:50.4]} 15. Kxg2 {[%clk 0:02:22.9]}
15... Qc6+ {[%clk 0:01:51]} 16. Rf3 {[%clk 0:02:21.3]} 16... Ne7 {[%clk
0:01:36.7]} 17. Na3 {[%clk 0:02:18]} 17... g6 {[%clk 0:01:23.7]} 18. Nc4 {[%clk
0:02:10]} 18... gxh5 {[%clk 0:01:13.8]} 19. Nd6+ {[%clk 0:01:59.2]} 19... Kd7
{[%clk 0:01:13.4]} 20. Ne4 {[%clk 0:01:58.4]} 20... hxg4 {[%clk 0:01:09.4]} 21.
Rg3 {[%clk 0:01:58.4]} 21... h5 {[%clk 0:01:02.8]} 22. Kf1 {[%clk 0:01:51.1]}
22... Nf5 {[%clk 0:00:54.6]} 23. Rg1 {[%clk 0:01:49]} 23... Be7 {[%clk
0:00:52.3]} 24. Qc1 {[%clk 0:01:46.5]} 24... Rag8 {[%clk 0:00:48.2]} 25. N2g3
{[%clk 0:01:37.6]} 25... h4 {[%clk 0:00:40.5]} 26. Ne2 {[%clk 0:01:35.6]} 26...
g3 {[%clk 0:00:28.8]} 27. Qc2 {[%clk 0:01:35.4]} 27... Rg4 {[%clk 0:00:20.4]}
28. Rd1 {[%clk 0:01:32.5]} 28... h3 {[%clk 0:00:19]} 29. d4 {[%clk 0:01:23.4]}
29... g2+ {[%clk 0:00:17.6]} 30. Ke1 {[%clk 0:01:23.1]} 30... h2 {[%clk
0:00:16.7]} 0-1

[Event "*** Titled Tuesday Blitz"]
[Site "Chess.com"]
[Date "2020.12.29"]
[Round "10"]
[White "Ajedrez_con_German"]
[Black "Flopezin"]
[Result "0-1"]
[WhiteElo "2512"]
[BlackElo "2403"]
[TimeControl "180+1"]
[EndTime "11:53:34 PST"]
[Termination "Flopezin won by resignation"]

1. d4 {[%clk 0:02:37.1]} 1... Nf6 {[%clk 0:02:58.1]} 2. Bf4 {[%clk 0:02:37.3]}
2... e6 {[%clk 0:02:58.1]} 3. e3 {[%clk 0:02:37.4]} 3... c5 {[%clk 0:02:58.6]}
4. c3 {[%clk 0:02:37.2]} 4... b6 {[%clk 0:02:59.1]} 5. Nf3 {[%clk 0:02:37.4]}
5... Bb7 {[%clk 0:02:59.6]} 6. Nbd2 {[%clk 0:02:37.1]} 6... Be7 {[%clk
0:02:59.8]} 7. h3 {[%clk 0:02:36.3]} 7... O-O {[%clk 0:02:59.3]} 8. Bd3 {[%clk
0:02:36.1]} 8... cxd4 {[%clk 0:02:59.7]} 9. exd4 {[%clk 0:02:36.3]} 9... d6
{[%clk 0:02:59.9]} 10. O-O {[%clk 0:02:35.6]} 10... Nbd7 {[%clk 0:03:00.5]} 11.
Bh2 {[%clk 0:02:35.7]} 11... Re8 {[%clk 0:03:00.6]} 12. Re1 {[%clk 0:02:35.1]}
12... Bf8 {[%clk 0:03:00.7]} 13. a4 {[%clk 0:02:35.2]} 13... a6 {[%clk
0:03:00.8]} 14. Qb3 {[%clk 0:02:22.4]} 14... e5 {[%clk 0:02:23]} 15. dxe5 {[%clk
0:02:03.6]} 15... dxe5 {[%clk 0:02:21.6]} 16. Bc4 {[%clk 0:01:58.9]} 16... Re7
{[%clk 0:02:21.2]} 17. Ng5 {[%clk 0:01:46.3]} 17... Nc5 {[%clk 0:02:16]} 18.
Bxf7+ {[%clk 0:01:18.4]} 18... Kh8 {[%clk 0:02:15.7]} 19. Qc2 {[%clk 0:00:57.5]}
19... h6 {[%clk 0:02:15.9]} 20. Rad1 {[%clk 0:00:48.4]} 20... Qd3 {[%clk
0:01:57.6]} 21. Qc1 {[%clk 0:00:30.4]} 21... Qf5 {[%clk 0:01:45.8]} 22. Ngf3
{[%clk 0:00:03.9]} 22... Rxf7 {[%clk 0:01:32.2]} 23. Nh4 {[%clk 0:00:04.2]}
23... Qh7 {[%clk 0:01:29.2]} 24. Bxe5 {[%clk 0:00:02]} 24... Nd3 {[%clk
0:01:28.3]} 25. Qc2 {[%clk 0:00:01.3]} 25... Nxe1 {[%clk 0:01:27.5]} 26. Qxh7+
{[%clk 0:00:01.5]} 26... Kxh7 {[%clk 0:01:25.9]} 27. Rxe1 {[%clk 0:00:02.4]}
27... Re8 {[%clk 0:01:24.8]} 0-1

[Event "*** Titled Tuesday Blitz"]
[Site "Chess.com"]
[Date "2020.12.29"]
[Round "10"]
[White "TomasKapitanchuk"]
[Black "Chesswizard_2007"]
[Result "0-1"]
[WhiteElo "2474"]
[BlackElo "2661"]
[TimeControl "180+1"]
[EndTime "11:53:35 PST"]
[Termination "Chesswizard_2007 won by checkmate"]

1. e4 {[%clk 0:03:00.9]} 1... c5 {[%clk 0:02:51.7]} 2. Nf3 {[%clk 0:03:01.2]}
2... Nc6 {[%clk 0:02:49.6]} 3. Bb5 {[%clk 0:03:01.5]} 3... g6 {[%clk 0:02:48]}
4. Bxc6 {[%clk 0:03:01.2]} 4... dxc6 {[%clk 0:02:47.7]} 5. d3 {[%clk 0:03:01]}
5... Bg7 {[%clk 0:02:48.3]} 6. h3 {[%clk 0:03:01.5]} 6... Nf6 {[%clk 0:02:48.4]}
7. Nc3 {[%clk 0:03:01.6]} 7... O-O {[%clk 0:02:49]} 8. Be3 {[%clk 0:03:02]} 8...
b6 {[%clk 0:02:48.7]} 9. Qd2 {[%clk 0:03:02.6]} 9... Nd7 {[%clk 0:02:42]} 10. h4
{[%clk 0:03:01.7]} 10... h5 {[%clk 0:02:41.6]} 11. Bh6 {[%clk 0:03:00.6]} 11...
Nf6 {[%clk 0:02:36.3]} 12. Bxg7 {[%clk 0:02:55.8]} 12... Kxg7 {[%clk 0:02:37.2]}
13. Ng5 {[%clk 0:02:56.7]} 13... Ne8 {[%clk 0:02:32.9]} 14. O-O-O {[%clk
0:02:54.3]} 14... Nc7 {[%clk 0:02:32.4]} 15. f3 {[%clk 0:02:53.4]} 15... Ne6
{[%clk 0:02:32.3]} 16. g4 {[%clk 0:02:52.7]} 16... Rh8 {[%clk 0:02:32.2]} 17.
Rdg1 {[%clk 0:02:47.3]} 17... Nd4 {[%clk 0:02:21.4]} 18. Ne2 {[%clk 0:02:29.1]}
18... b5 {[%clk 0:01:51.2]} 19. gxh5 {[%clk 0:02:26.2]} 19... Rxh5 {[%clk
0:01:49.3]} 20. Nf4 {[%clk 0:02:23]} 20... Rh6 {[%clk 0:01:49.4]} 21. h5 {[%clk
0:02:21.8]} 21... e5 {[%clk 0:01:49.1]} 22. Ne2 {[%clk 0:02:08.3]} 22... c4
{[%clk 0:01:46.8]} 23. hxg6 {[%clk 0:02:05.9]} 23... Nxe2+ {[%clk 0:01:30.4]}
24. Qxe2 {[%clk 0:01:48.4]} 24... Rxh1 {[%clk 0:01:28.5]} 25. Rxh1 {[%clk
0:01:47.1]} 25... Qxg5+ {[%clk 0:01:28.3]} 26. Kd1 {[%clk 0:01:48]} 26... cxd3
{[%clk 0:01:22.9]} 27. cxd3 {[%clk 0:01:43.8]} 27... Be6 {[%clk 0:01:15.2]} 28.
Qh2 {[%clk 0:01:41.3]} 28... Bxa2 {[%clk 0:01:03.1]} 29. Qh7+ {[%clk 0:01:39.9]}
29... Kf6 {[%clk 0:01:03]} 30. Rh5 {[%clk 0:01:07.7]} 30... Bb3+ {[%clk
0:00:58.4]} 31. Ke1 {[%clk 0:01:05.5]} 31... Qe3+ {[%clk 0:00:54.7]} 32. Kf1
{[%clk 0:01:03.3]} 32... Qxf3+ {[%clk 0:00:55.6]} 33. Ke1 {[%clk 0:01:01.7]}
33... Qe3+ {[%clk 0:00:53.9]} 34. Kf1 {[%clk 0:01:01.8]} 34... Qxd3+ {[%clk
0:00:54.8]} 35. Kg1 {[%clk 0:00:59.6]} 35... Qg3+ {[%clk 0:00:54.3]} 36. Kf1
{[%clk 0:00:58.8]} 36... Bc4# {[%clk 0:00:54.1]} 0-1